bitfinex-derivatives/quotes_BNBF0:USTF0_20250101
["timestamp","ask_amount","ask_price","bid_price","bid_amount"]
[1735714632507,0.26065118,706.7,705.83,1.05729738]
[1735714633105,0.26065118,706.7,705.85,1.05729738]
[1735714633308,0.26065118,706.69,705.85,1.05729738]
[1735714633509,1.06260346,706.74,705.85,1.05729738]
[1735714633708,0.26065163,706.73,705.85,1.05729738]
[1735714634108,0.26065163,706.73,705.65,1.05729738]
[1735714634109,0.26065163,706.73,705.83,1.05729738]
[1735714634309,0.26065163,706.72,705.83,1.05729738]
[1735714634510,0.26065163,706.71,705.83,1.05729738]
[1735714634812,1.06260346,706.75,705.83,1.05729738]
[1735714635009,0.26064579,706.74,705.85,1.05729738]
[1735714635211,1.06260346,706.76,705.85,1.05729738]
[1735714635212,0.26064579,706.73,705.85,1.05729738]
[1735714635404,0.26064579,706.72,705.85,1.05729738]
[1735714635601,1.06260346,706.76,705.85,1.05729738]
[1735714635806,0.26064581,706.75,705.85,1.05729738]
[1735714636006,0.26064581,706.75,705.84,1.05729738]
[1735714636210,0.26064581,706.74,705.84,1.05729738]
[1735714636409,0.26064581,706.73,705.84,1.05729738]
[1735714636709,0.26064581,706.72,705.84,1.05729738]
[1735714636911,0.26064581,706.71,705.84,1.05729738]
[1735714637109,0.26064581,706.7,705.84,1.05729738]
[1735714637309,0.26064451,706.69,705.84,1.05729738]
[1735714637509,1.06260346,706.79,705.84,1.05729738]
[1735714637808,0.26064327,706.78,705.84,1.05729738]
[1735714638004,0.26064327,706.77,705.84,1.05729738]
[1735714638210,0.26064327,706.76,705.85,1.05729738]
[1735714638404,0.26064327,706.75,705.85,1.05729738]
[1735714638608,0.26064327,706.74,705.85,1.05729738]
[1735714638810,0.26064327,706.73,705.85,1.05729738]
[1735714639107,0.26064327,706.72,705.85,1.05729738]
[1735714639311,0.26064327,706.71,705.84,1.05729738]
[1735714639512,0.26064327,706.7,705.84,1.05729738]
[1735714639814,0.26064327,706.69,705.84,1.05729738]
[1735714640006,1.06260346,706.79,705.84,1.05729738]
[1735714640211,0.2606446,706.78,705.84,1.05729738]
[1735714640410,0.2606446,706.78,705.83,1.05729738]
[1735714641809,0.2606446,706.78,705.84,1.05729738]
[1735714642013,0.2606446,706.77,705.84,1.05729738]
[1735714642314,0.2606446,706.76,705.84,1.05729738]
[1735714642513,0.2606446,706.75,705.83,1.05729738]
[1735714642714,0.2606446,706.74,705.83,1.05729738]
[1735714643013,0.2606446,706.73,705.83,1.05729738]
[1735714643314,0.2606446,706.72,705.83,1.05729738]
[1735714643516,0.2606446,706.71,705.83,1.05729738]
[1735714643715,0.2606446,706.7,705.83,1.05729738]
[1735714643915,0.2606446,706.69,705.83,1.05729738]
[1735714644214,1.06260346,706.81,705.83,1.05729738]
[1735714644418,0.26064328,706.8,705.83,1.05729738]
[1735714644615,1.06260346,706.81,705.83,1.05729738]
[1735714644812,0.26064242,706.8,705.83,1.05729738]
[1735714645212,1.06260346,706.81,705.83,1.05729738]
[1735714645415,0.26064651,706.8,705.83,1.05729738]
[1735714646410,1.32324997,706.8,705.82,1.05729738]
[1735714646613,0.26064651,706.79,705.82,1.05729738]
[1735714647417,0.26064651,706.79,705.83,1.05729738]
[1735714647608,0.26064651,706.78,705.83,1.05729738]
[1735714647812,0.26064651,706.77,705.83,1.05729738]
[1735714648015,1.06260346,706.82,705.83,1.05729738]
[1735714648209,0.26061496,706.81,705.83,1.05729738]
[1735714648410,1.06260346,706.82,705.83,1.05729738]
[1735714648616,0.26062138,706.81,705.9,1.05729738]
[1735714648917,0.26062138,706.8,705.9,1.05729738]
[1735714649215,0.28294546,706.85,705.9,1.05729738]
[1735714649414,0.2606087,706.84,705.9,1.05729738]
[1735714650513,0.28294546,706.85,705.9,1.05729738]
[1735714650716,0.26062826,706.84,705.89,1.05729738]
[1735714652010,0.26062826,706.84,705.88,1.05729738]
[1735714653110,0.28294546,706.85,705.88,1.05729738]
[1735714653314,0.26061446,706.84,705.88,1.05729738]
[1735714654222,0.26061446,706.84,705.69,1.05729738]
[1735714654223,0.26061446,706.84,705.87,1.05729738]
[1735714654524,0.26061559,706.83,705.87,1.05729738]
[1735714654716,0.26061559,706.82,705.87,1.05729738]
[1735714654922,0.26061559,706.81,705.87,1.05729738]
[1735714655124,0.26061559,706.8,705.87,1.05729738]
[1735714655322,0.26061559,706.79,705.87,1.05729738]
[1735714655520,0.26061559,706.78,705.87,1.05729738]
[1735714655715,0.28294546,706.85,705.87,1.05729738]
[1735714655924,0.26061139,706.84,705.87,1.05729738]
[1735714656320,0.26061139,706.84,705.69,1.05729738]
[1735714656321,0.26061139,706.84,705.88,1.05729738]
[1735714657127,0.28294546,706.85,705.88,1.05729738]
[1735714657527,0.28294546,706.85,705.9,1.05729738]
[1735714657826,1.06260346,706.94,705.9,1.05729738]
[1735714658527,1.47792143,707.09,705.83,1.05729738]
[1735714658727,0.26057374,707.08,705.83,1.05729738]
[1735714659629,0.26057374,707.08,705.85,1.05729738]
[1735714660830,0.26057374,707.08,705.84,1.05729738]
[1735714661132,0.26057647,707.07,705.84,1.05729738]
[1735714661429,0.26057647,707.06,705.84,1.05729738]
[1735714661631,1.47792143,707.09,705.83,1.05729738]
[1735714661926,0.26057678,707.08,705.83,1.05729738]
[1735714663730,1.47792143,707.09,705.83,1.05729738]
[1735714663927,0.26057667,707.08,705.83,1.05729738]
[1735714665032,0.26057667,707.08,705.82,1.05729738]
[1735714665927,0.26057667,707.08,705.83,0.28335434]
[1735714666335,1.47792143,707.09,705.83,0.28335434]
[1735714666528,0.2605762,707.08,705.83,0.28335434]
[1735714668526,0.2605762,707.08,705.91,1.05729738]
[1735714669032,0.26057094,707.07,705.91,1.05729738]
[1735714669232,0.26057094,707.06,705.91,1.05729738]
[1735714669432,0.26057094,707.06,705.83,0.28335434]
[1735714669433,0.26057094,707.05,705.92,1.05729738]
[1735714669633,1.47792143,707.09,705.92,1.05729738]
[1735714669835,0.26057146,707.08,705.92,1.05729738]
[1735714670835,0.26057146,707.08,705.93,1.05729738]
[1735714671736,0.26056657,707.07,705.93,1.05729738]
[1735714671935,0.26056657,707.06,705.95,1.05729738]
[1735714672137,0.26056657,707.05,705.95,1.05729738]
[1735714672335,0.26056657,707.04,705.95,1.05729738]
[1735714672537,0.26056657,707.03,705.95,1.05729738]
[1735714672737,0.26056657,707.02,705.95,1.05729738]
[1735714672937,0.26056657,707.01,705.95,1.05729738]
[1735714673137,0.26056657,707.0,705.97,1.05729738]
[1735714673338,0.26056657,706.99,705.97,1.05729738]
[1735714673532,0.26056657,706.98,705.97,1.05729738]
[1735714673738,0.26056657,706.97,705.97,1.05729738]
[1735714673937,0.26056657,706.96,705.97,1.05729738]
[1735714674135,0.26056657,706.95,705.97,1.05729738]
[1735714674333,1.06260346,707.07,705.97,1.05729738]
[1735714674633,0.26056678,707.06,705.97,1.05729738]
[1735714674834,0.26056678,707.06,705.98,1.05729738]
[1735714675940,0.26056678,707.06,705.96,1.05729738]
[1735714676140,0.26056678,707.05,705.96,1.05729738]
[1735714676442,0.26056678,707.04,705.96,1.05729738]
[1735714676742,0.26056678,707.03,705.96,1.05729738]
[1735714676935,0.26056133,707.02,705.96,1.05729738]
[1735714677141,0.26056133,707.01,705.97,1.05729738]
[1735714677441,0.26056133,707.0,705.97,1.05729738]
[1735714677642,0.26056133,706.99,705.97,1.05729738]
[1735714677942,0.26056133,706.98,705.97,1.05729738]
[1735714678140,0.26056133,706.97,705.97,1.05729738]
[1735714678340,0.26056133,706.96,705.98,1.05729738]
[1735714678536,0.26056133,706.95,705.98,1.05729738]
[1735714678736,0.26056133,706.94,705.98,1.05729738]
[1735714678941,2.54052489,707.09,705.98,1.05729738]
[1735714679141,0.26056244,707.08,705.98,1.05729738]
[1735714679644,2.54052489,707.09,705.98,1.05729738]
[1735714679944,0.26056102,707.08,705.98,1.05729738]
[1735714680337,2.54052489,707.09,705.98,1.05729738]
[1735714680338,0.26056008,707.07,705.98,1.05729738]
[1735714680636,0.26056008,707.06,705.98,1.05729738]
[1735714680842,0.26056008,707.05,706.0,1.05729738]
[1735714681037,0.26056008,707.04,706.0,1.05729738]
[1735714681238,0.26056008,707.03,706.0,1.05729738]
[1735714681438,1.06260346,707.08,706.0,1.05729738]
[1735714681841,0.26056112,707.07,706.0,1.05729738]
[1735714684249,0.26055032,707.06,706.0,1.05729738]
[1735714684448,0.26055032,707.05,706.0,1.05729738]
[1735714684642,0.26055032,707.04,706.0,1.05729738]
[1735714684947,1.06260346,707.08,706.0,1.05729738]
[1735714685247,0.26055013,707.07,706.0,1.05729738]
[1735714689446,1.06260346,707.08,706.0,1.05729738]
[1735714689645,0.26053829,707.07,706.0,1.05729738]
[1735714690949,0.26053829,707.07,706.1,1.05729738]
[1735714691148,0.26053829,707.06,706.1,1.05729738]
[1735714691445,0.26053829,707.05,706.1,1.05729738]
[1735714691648,0.26053829,707.04,706.1,1.05729738]
[1735714691947,0.26053829,707.03,706.09,1.05729738]
[1735714692246,0.26053932,707.02,706.09,1.05729738]
[1735714692451,0.26053932,707.09,706.09,1.05729738]
[1735714692651,1.47770178,707.21,706.15,1.05729738]
[1735714692652,0.26053932,707.01,706.15,1.05729738]
[1735714692845,0.26054037,707.0,706.15,1.05729738]
[1735714693245,1.06260346,707.05,706.15,1.05729738]
[1735714693246,0.26054037,707.04,706.15,1.05729738]
[1735714693454,0.26054037,707.03,706.15,1.05729738]
[1735714694744,1.06260346,707.04,706.15,1.05729738]
[1735714694950,0.2605454,707.03,706.15,1.05729738]
[1735714695352,1.06260346,707.02,706.13,1.05729738]
[1735714695652,0.2605454,707.01,706.13,1.05729738]
[1735714696554,1.06260346,707.0,706.11,1.05729738]
[1735714696751,0.2605454,706.99,706.11,1.05729738]
[1735714697353,1.06260346,707.0,706.11,1.05729738]
[1735714697653,0.26055652,706.99,706.11,1.05729738]
[1735714698353,1.06260346,707.0,706.11,1.05729738]
[1735714698657,1.06260346,707.0,705.93,1.05729738]
[1735714698658,1.06260346,707.0,706.12,1.05729738]
[1735714699957,1.47776976,707.11,705.85,1.05729738]
[1735714699958,1.06260346,707.08,705.85,1.05729738]
[1735714700256,0.26059848,707.07,705.85,1.05729738]
[1735714701559,1.06260346,707.01,705.88,1.05729738]
[1735714701856,0.26059848,707.0,705.88,1.05729738]
[1735714702655,1.06260346,707.01,705.86,1.05729738]
[1735714702656,0.26060136,706.99,705.86,1.05729738]
[1735714702853,0.26060136,706.98,705.86,1.05729738]
[1735714703058,0.26060136,706.97,705.86,1.05729738]
[1735714703255,0.26060136,706.96,705.86,1.05729738]
[1735714703450,1.06260346,707.01,705.86,1.05729738]
[1735714703657,0.26060059,707.0,705.85,1.05729738]
[1735714703856,0.26060059,706.99,705.85,1.05729738]
[1735714704052,0.26060059,706.98,705.85,1.05729738]
[1735714704255,0.26060059,706.97,705.85,1.05729738]
[1735714704457,0.26060059,706.96,705.85,1.05729738]
[1735714704659,1.06260346,707.03,705.85,1.05729738]
[1735714704957,0.26060167,707.02,705.85,1.05729738]
[1735714706154,0.26060167,707.02,705.84,1.05729738]
[1735714706355,0.26060167,707.01,705.84,1.05729738]
[1735714706655,0.26060167,707.0,705.84,1.05729738]
[1735714706958,0.26060167,706.99,705.84,1.05729738]
[1735714707158,0.26060167,706.98,705.83,1.34065172]
[1735714707359,0.26060167,706.97,705.83,1.34065172]
[1735714707658,0.26060167,706.96,705.83,1.34065172]
[1735714707855,1.06260346,707.05,705.83,1.34065172]
[1735714708153,0.26060154,707.04,705.83,1.34065172]
[1735714708360,0.26060154,707.04,705.83,0.28335434]
[1735714708960,1.47798942,707.03,705.83,0.28335434]
[1735714709155,1.06260346,706.95,705.93,1.05729738]
[1735714709352,0.26060154,706.94,705.93,1.05729738]
[1735714710464,1.06260346,706.95,705.93,1.05729738]
[1735714710665,0.26059501,706.94,705.93,1.05729738]
[1735714710962,0.26059501,706.93,705.93,1.05729738]
[1735714711161,0.26059501,706.92,705.93,1.05729738]
[1735714711363,0.26059501,706.91,705.93,1.05729738]
[1735714711561,0.26059501,706.9,705.93,1.05729738]
[1735714711757,0.26059501,706.89,705.93,1.05729738]
[1735714711962,0.26059501,706.88,705.93,1.05729738]
[1735714712160,1.06260346,706.97,705.93,1.05729738]
[1735714712362,0.26057438,706.96,705.93,1.05729738]
[1735714712863,0.26057438,706.96,705.98,1.05729738]
[1735714713063,1.06260346,707.02,705.98,1.05729738]
[1735714713362,0.26057392,707.01,705.98,1.05729738]
[1735714714159,0.26057392,707.0,705.98,1.05729738]
[1735714714363,0.26057392,706.99,705.98,1.05729738]
[1735714714558,0.26057392,706.98,705.98,1.05729738]
[1735714714759,0.26057392,706.97,705.98,1.05729738]
[1735714714962,0.26057392,706.96,705.98,1.05729738]
[1735714715265,0.26057392,706.95,705.98,1.05729738]
[1735714715461,0.26057392,706.94,705.95,1.05729738]
[1735714715662,0.26057392,706.98,705.95,1.05729738]
[1735714715861,0.26058082,706.97,705.95,1.05729738]
[1735714716064,0.26058082,706.96,705.95,1.05729738]
[1735714716260,0.26058082,706.98,705.95,1.05729738]
[1735714716460,0.26058491,706.97,705.95,1.05729738]
[1735714716765,0.26058491,706.96,705.96,1.05729738]
[1735714716958,0.26058491,706.95,705.96,1.05729738]
[1735714717157,1.06260346,706.99,705.96,1.05729738]
[1735714717158,0.26058491,706.94,705.96,1.05729738]
[1735714717365,0.26058491,706.93,705.96,1.05729738]
[1735714717663,0.26058491,706.92,705.96,1.05729738]
[1735714717865,0.26058491,706.91,705.96,1.05729738]
[1735714718065,0.26058491,706.9,705.96,1.05729738]
[1735714718266,1.06260346,706.99,705.96,1.05729738]
[1735714718970,1.47787435,707.11,705.83,0.28335434]
[1735714730680,0.26059025,707.1,705.83,0.28335434]
[1735714731784,0.26059025,707.09,705.83,0.28335434]
[1735714732085,1.06260346,707.06,705.87,1.05729738]
[1735714733383,1.47787435,707.11,705.88,1.05729738]
[1735714733384,1.06260346,707.05,705.88,1.05729738]
[1735714734183,1.06260346,707.1,705.87,1.05729738]
[1735714735278,1.06260346,707.09,705.86,1.05729738]
[1735714735779,0.26058592,707.08,705.86,1.05729738]
[1735714736285,0.26058592,707.08,705.85,1.05729738]
[1735714736483,0.26058592,707.07,705.85,1.05729738]
[1735714736681,1.06260346,707.1,705.85,1.05729738]
[1735714736878,0.26058602,707.09,705.85,1.05729738]
[1735714737387,1.06260346,707.03,705.92,1.05729738]
[1735714738688,1.06260346,707.01,705.94,1.05729738]
[1735714739682,1.06260346,707.0,705.95,1.05729738]
[1735714740688,1.06260346,707.0,705.96,1.05729738]
[1735714741983,1.06260346,706.99,705.96,1.05729738]
[1735714742884,1.06260346,706.99,705.97,1.05729738]
[1735714743086,0.26058417,706.98,705.97,1.05729738]
[1735714743686,1.06260346,706.99,705.97,1.05729738]
[1735714744089,1.06260346,706.92,706.04,1.05729738]
[1735714745395,1.06260346,707.19,706.05,1.05729738]
[1735714746194,1.06260346,707.21,706.03,1.05729738]
[1735714746394,0.26052835,707.2,706.03,1.05729738]
[1735714747095,0.26053162,707.19,706.03,1.05729738]
[1735714747395,0.26053162,707.18,706.01,1.05729738]
[1735714747591,1.06260346,707.22,706.01,1.05729738]
[1735714747789,0.26053113,707.21,706.01,1.05729738]
[1735714748491,1.06260346,707.2,705.96,1.05729738]
[1735714748696,0.26053113,707.19,705.96,1.05729738]
[1735714749297,1.32313459,707.19,705.95,1.05729738]
[1735714749496,0.26053113,707.18,705.95,1.05729738]
[1735714749797,0.26054539,707.17,705.95,1.05729738]
[1735714749995,0.26054539,707.16,705.95,1.05729738]
[1735714750197,0.26054539,707.15,705.95,1.05729738]
[1735714750392,0.26054539,707.14,705.96,1.05729738]
[1735714750590,1.06260346,707.21,705.96,1.05729738]
[1735714750793,0.26054688,707.2,705.96,1.05729738]
[1735714751798,0.26054688,707.2,705.95,1.05729738]
[1735714752494,0.26054162,707.19,705.95,1.05729738]
[1735714752697,0.26054162,707.18,705.95,1.05729738]
[1735714752893,0.26054162,707.17,705.95,1.05729738]
[1735714753099,0.26054162,707.16,705.95,1.05729738]
[1735714753299,1.06260346,707.23,705.95,1.05729738]
[1735714753491,0.26053586,707.22,705.95,1.05729738]
[1735714754401,0.26053586,707.22,705.96,1.05729738]
[1735714754598,0.26053586,707.21,705.96,1.05729738]
[1735714754800,0.26053586,707.2,705.96,1.05729738]
[1735714754993,1.06260346,707.25,705.96,1.05729738]
[1735714754994,0.26053586,707.19,705.96,1.05729738]
[1735714755199,0.26053718,707.18,705.96,1.05729738]
[1735714755398,0.26053718,707.17,705.96,1.05729738]
[1735714755593,1.47761289,707.2,705.83,0.28335434]
[1735714755594,0.26053718,707.16,706.09,1.05729738]
[1735714755800,1.06260346,707.12,706.09,1.05729738]
[1735714756097,0.26053757,707.11,706.09,1.05729738]
[1735714756496,0.26053757,707.11,706.08,1.05729738]
[1735714757798,1.06260346,707.16,706.09,1.05729738]
[1735714758001,0.26052421,707.15,706.09,1.05729738]
[1735714759700,1.06260346,707.16,706.09,1.05729738]
[1735714760305,1.06260346,707.16,706.08,1.05729738]
[1735714761307,1.06260346,707.16,705.84,0.71093388]
[1735714761308,1.47754493,707.27,705.84,1.05729738]
[1735714761508,1.47754493,707.27,705.85,0.28334632]
[1735714763207,1.47754493,707.27,705.85,1.3406437]
[1735714764109,1.47754493,707.27,705.87,1.05729738]
[1735714764309,1.47754493,707.27,705.88,0.28333427]
[1735714765109,1.47754493,707.27,705.88,1.34063165]
[1735714767110,1.47754493,707.27,705.89,1.05729738]
[1735714767308,1.47754493,707.27,705.9,0.28332625]
[1735714769613,0.26053775,707.26,705.9,0.28332625]
[1735714770815,1.06260346,707.17,706.04,1.05729738]
[1735714771109,0.26053775,707.16,706.04,1.05729738]
[1735714771313,0.26054169,707.15,706.04,1.05729738]
[1735714771514,0.26054169,707.14,706.04,1.05729738]
[1735714771714,0.26054169,707.13,706.04,1.05729738]
[1735714771916,0.26054169,707.12,706.04,1.05729738]
[1735714772211,0.26054169,707.11,706.04,1.05729738]
[1735714772414,0.26054169,707.1,706.04,1.05729738]
[1735714772615,0.26054169,707.09,706.04,1.05729738]
[1735714772815,0.26054169,707.08,706.04,1.05729738]
[1735714773017,0.26054169,707.07,706.04,1.05729738]
[1735714773217,0.26054169,707.06,706.06,1.05729738]
[1735714773411,1.06260346,707.11,706.06,1.05729738]
[1735714773611,0.26053985,707.1,706.06,1.05729738]
[1735714773917,0.26053985,707.1,706.08,1.05729738]
[1735714774911,1.06260346,707.08,706.08,1.05729738]
[1735714775118,0.26053985,707.07,706.08,1.05729738]
[1735714776123,1.06260346,707.06,706.05,1.05729738]
[1735714776323,0.26053985,707.05,706.05,1.05729738]
[1735714776821,0.26055284,707.04,706.05,1.05729738]
[1735714777018,0.26055284,707.03,706.07,1.05729738]
[1735714777318,0.26055284,707.02,706.07,1.05729738]
[1735714777516,1.06260346,707.06,706.07,1.05729738]
[1735714777719,0.26055483,707.05,706.07,1.05729738]
[1735714778414,0.26055483,707.05,705.9,0.28332625]
[1735714778415,1.06260346,707.03,706.09,1.05729738]
[1735714778614,0.26055483,707.02,706.09,1.05729738]
[1735714779222,1.06260346,707.01,706.1,1.05729738]
[1735714780223,0.26055506,707.0,706.1,1.05729738]
[1735714780423,0.26055506,707.0,705.9,0.28332625]
[1735714780424,1.06260346,707.01,706.11,1.05729738]
[1735714780824,0.26055768,707.0,706.11,1.05729738]
[1735714781521,1.06260346,706.99,706.11,1.05729738]
[1735714783125,0.26055844,706.98,706.11,1.05729738]
[1735714783327,1.06260346,706.99,706.11,1.05729738]
[1735714783827,0.26056458,706.98,706.11,1.05729738]
[1735714784832,1.06260346,706.99,706.11,1.05729738]
[1735714785026,0.2605599,706.98,706.11,1.05729738]
[1735714786330,1.06260346,707.0,706.11,1.05729738]
[1735714786530,0.26055832,706.99,706.11,1.05729738]
[1735714790237,0.26055376,706.98,706.11,1.05729738]
[1735714790432,0.26055376,706.97,706.11,1.05729738]
[1735714790640,0.26055376,706.96,706.15,1.05729738]
[1735714792639,1.06260346,706.98,706.13,1.05729738]
[1735714792841,0.26055031,706.97,706.13,1.05729738]
[1735714793439,1.06260346,706.98,706.13,1.05729738]
[1735714793640,1.06260346,706.99,706.14,1.05729738]
[1735714795143,1.47776453,707.11,705.91,0.71219076]
[1735714795144,1.06260346,707.02,706.12,1.05729738]
[1735714795443,0.26055176,707.01,706.12,1.05729738]
[1735714796140,0.26055159,707.0,706.12,1.05729738]
[1735714796445,1.06260346,707.01,706.12,1.05729738]
[1735714796644,0.26055159,707.0,706.12,1.05729738]
[1735714798641,0.26055159,707.0,706.13,1.05729738]
[1735714801244,1.32315505,707.0,706.13,1.05729738]
[1735714801441,0.26055159,706.99,706.13,1.05729738]
[1735714802145,0.26055298,706.98,706.13,1.05729738]
[1735714802340,0.26055298,706.97,706.13,1.05729738]
[1735714802546,1.32315644,706.96,706.16,1.05729738]
[1735714802747,1.06260346,706.96,706.16,1.05729738]
[1735714802947,0.26055787,706.95,706.16,1.05729738]
[1735714803342,1.06260346,706.96,706.16,1.05729738]
[1735714803648,1.06260346,706.96,706.17,1.05729738]
[1735714804849,1.06260346,706.99,706.23,1.05729738]
[1735714805050,0.2605369,706.98,706.23,1.05729738]
[1735714805450,1.06260346,706.99,706.23,1.05729738]
[1735714805650,0.26053627,706.98,706.23,1.05729738]
[1735714806951,1.32313973,706.98,706.22,1.05729738]
[1735714807250,0.26053627,706.97,706.22,1.05729738]
[1735714807956,1.06260346,706.98,706.22,1.05729738]
[1735714808154,1.06260346,706.94,706.18,1.05729738]
[1735714808354,0.26055311,706.93,706.18,1.05729738]
[1735714808956,1.06260346,706.94,706.18,1.05729738]
[1735714810458,1.06260346,706.94,706.19,1.05729738]
[1735714811654,1.06260346,706.95,706.19,1.05729738]
[1735714811856,0.26055139,706.94,706.19,1.05729738]
[1735714812961,1.06260346,706.95,706.19,1.05729738]
[1735714813163,0.26055098,706.94,706.19,1.05729738]
[1735714813565,1.06260346,706.95,706.19,1.05729738]
[1735714815464,1.06260346,706.98,706.23,1.05729738]
[1735714816565,1.4778482,707.01,705.92,0.28331822]
[1735714824078,0.26062457,707.0,705.92,0.28331822]
[1735714826577,1.4778482,707.01,705.92,0.28331822]
[1735714826782,0.26062607,707.0,705.92,0.28331822]
[1735714827281,1.4778482,707.01,705.92,0.28331822]
[1735714827475,0.2606225,707.0,705.92,0.28331822]
[1735714827678,1.06260346,706.98,705.92,0.28331822]
[1735714827878,0.2606225,706.97,705.92,0.28331822]
[1735714829080,0.2606225,706.96,705.92,0.28331822]
[1735714829277,1.4778482,707.01,705.92,0.28331822]
[1735714829482,0.26062617,707.0,705.92,0.28331822]
[1735714829683,1.06260346,706.97,705.92,0.28331822]
[1735714829983,0.26062617,706.96,705.92,0.28331822]
[1735714831379,0.26062617,706.95,705.92,0.28331822]
[1735714831579,0.26062617,706.94,705.92,0.28331822]
[1735714831784,0.26062617,706.93,705.92,0.28331822]
[1735714832082,0.26059836,706.92,705.92,0.28331822]
[1735714832388,0.26059836,706.91,705.92,0.28331822]
[1735714832586,0.26059836,706.9,705.92,0.28331822]
[1735714832886,0.26059836,706.89,705.92,0.28331822]
[1735714833080,1.4778482,707.01,705.92,0.28331822]
[1735714833283,0.26060573,707.0,705.92,0.28331822]
[1735714837281,0.26060573,706.99,705.92,0.28331822]
[1735714837482,0.26060573,707.11,705.92,0.28331822]
[1735714837782,0.26060573,707.1,705.92,0.28331822]
[1735714837986,0.26060573,707.09,705.92,0.28331822]
[1735714838183,0.26060573,707.08,705.92,0.28331822]
[1735714838379,0.26060573,707.07,705.92,0.28331822]
[1735714838584,0.26060573,707.06,705.92,0.28331822]
[1735714838785,0.26060573,707.05,705.92,0.28331822]
[1735714839086,0.26060573,707.04,705.92,0.28331822]
[1735714839286,0.26060573,707.03,705.92,0.28331822]
[1735714839485,0.26060573,707.02,705.92,0.28331822]
[1735714839781,0.26060573,707.01,705.92,0.28331822]
[1735714839986,1.06260346,707.13,705.92,0.28331822]
[1735714840183,0.26057158,707.12,705.92,0.28331822]
[1735714840988,1.32317504,707.12,705.92,1.3406156]
[1735714841182,0.26057158,707.11,705.92,1.3406156]
[1735714842086,0.26057158,707.11,705.95,1.05729738]
[1735714842288,0.26057158,707.1,705.95,1.05729738]
[1735714842487,0.26057158,707.09,705.95,1.05729738]
[1735714842684,0.26057158,707.12,705.95,1.05729738]
[1735714843191,0.26057158,707.12,705.92,1.3406156]
[1735714843489,0.26056392,707.11,705.92,1.3406156]
[1735714843689,0.26056392,707.1,705.92,1.3406156]
[1735714843890,0.26056392,707.09,705.92,1.3406156]
[1735714844192,0.26056392,707.08,705.95,1.05729738]
[1735714844390,0.26056392,707.07,705.95,1.05729738]
[1735714844589,0.26056392,707.06,705.95,1.05729738]
[1735714844784,0.26056392,707.05,705.95,1.05729738]
[1735714844985,0.26056392,707.04,705.95,1.05729738]
[1735714845285,0.26056392,707.03,705.96,1.05729738]
[1735714845489,0.26056493,707.02,705.96,1.05729738]
[1735714845792,0.26056493,707.01,705.96,1.05729738]
[1735714846090,0.26056493,707.0,705.96,1.05729738]
[1735714846291,0.26056493,706.99,705.96,1.05729738]
[1735714846488,0.26056493,706.98,705.95,1.05729738]
[1735714846688,0.26056493,706.97,705.95,1.05729738]
[1735714846891,1.06260346,707.1,705.95,1.05729738]
[1735714846892,0.26056493,706.96,705.95,1.05729738]
[1735714847092,0.26056493,706.95,705.95,1.05729738]
[1735714847389,0.26056493,706.94,705.95,1.05729738]
[1735714847593,0.26056493,706.93,705.97,1.05729738]
[1735714847786,0.26056493,706.92,705.97,1.05729738]
[1735714847990,0.26056966,706.91,705.97,1.05729738]
[1735714848190,0.26056966,706.9,705.97,1.05729738]
[1735714848492,1.06260346,707.06,705.97,1.05729738]
[1735714848693,1.32316659,707.05,705.98,1.05729738]
[1735714848893,0.26056313,707.04,705.98,1.05729738]
[1735714849894,0.26056313,707.04,705.92,0.28331822]
[1735714849895,0.26056313,707.04,706.0,1.05729738]
[1735714850089,0.26056313,707.03,706.0,1.05729738]
[1735714850291,0.26056313,707.02,706.0,1.05729738]
[1735714850492,0.26056313,707.01,706.0,1.05729738]
[1735714850686,0.26056313,707.0,706.0,1.05729738]
[1735714850896,0.26056313,706.99,705.97,1.05729738]
[1735714851095,0.26056313,706.98,705.97,1.05729738]
[1735714851297,1.06260346,707.06,705.97,1.05729738]
[1735714851496,0.26056899,707.05,705.97,1.05729738]
[1735714851997,0.26056989,707.04,705.97,1.05729738]
[1735714852197,0.26056989,707.03,705.97,1.05729738]
[1735714852398,0.26056989,707.02,705.97,1.05729738]
[1735714852698,0.26056989,707.01,705.97,1.05729738]
[1735714852900,0.26056989,707.0,705.97,1.05729738]
[1735714853091,0.26056989,706.99,705.97,1.05729738]
[1735714853394,1.06260346,707.07,705.97,1.05729738]
[1735714853597,0.26056972,707.06,705.97,1.05729738]
[1735714853795,0.26056972,707.06,705.99,1.05729738]
[1735714853796,1.06260346,707.04,705.99,1.05729738]
[1735714853995,0.26056972,707.03,705.99,1.05729738]
[1735714854994,1.32317318,707.03,705.98,1.05729738]
[1735714855200,0.26056972,707.02,705.98,1.05729738]
[1735714856197,1.32317318,707.02,705.99,1.05729738]
[1735714856402,0.26056972,707.01,705.99,1.05729738]
[1735714857103,1.32317318,707.01,706.0,1.05729738]
[1735714857304,0.26056972,707.0,706.0,1.05729738]
[1735714858003,0.26056972,707.0,705.92,0.28331822]
[1735714858004,0.26056972,707.0,706.02,1.05729738]
[1735714858302,0.26056972,706.99,706.02,1.05729738]
[1735714858502,0.26056972,706.98,706.02,1.05729738]
[1735714858702,1.06260346,707.02,706.02,1.05729738]
[1735714858904,1.47786912,707.17,706.01,1.05729738]
[1735714858905,1.32317269,707.01,706.01,1.05729738]
[1735714859103,0.26056923,707.0,706.01,1.05729738]